{"text_format":"1","workbook":"xlsx","n_sheets":5,"sheets":["請求書","請求書2","請求書3","(10％用)入力フォーム","Sheet1"],"not_rendered":{"charts":0,"images":7,"macros":1,"external_links":0,"defined_names":4,"comments":0,"pivot_tables":0},"unopened":[],"bounds":{"document_bytes":16777216,"sheet_cells":100000,"rows_first":2000,"rows_last":500,"rows_between":2000,"halvings":0,"cell_chars":16384,"cell_head_chars":4096},"cells_cut":0,"cells_raw":0,"read":"whole","date_system":"1900"}

{"sheet":"請求書","index":0,"n_rows":86,"n_cols":74,"rows_kept":86,"cut":false,"hidden":true,"merged":[[0,0,4,75],[6,23,9,29],[6,30,9,33],[6,34,9,38],[6,39,9,42],[6,43,9,47],[6,48,9,51],[10,0,13,26],[11,50,13,69],[14,0,17,69],[18,41,21,75],[22,0,26,12],[22,13,26,16],[22,17,26,20],[22,21,26,24],[22,25,26,28],[22,29,26,32],[22,70,28,72],[22,73,28,75],[27,0,43,0],[27,1,43,6],[27,7,43,7],[27,8,32,33],[27,34,43,36],[29,38,35,38],[29,39,35,46],[29,47,35,47],[22,54,28,55],[22,56,28,58],[22,59,28,61],[22,62,28,64],[22,65,28,66],[22,67,28,69],[22,33,26,36],[22,38,28,38],[22,39,28,46],[22,47,28,47],[22,48,28,50],[22,51,28,53],[45,0,46,36],[45,41,46,75],[47,0,51,5],[47,6,51,30],[47,31,51,36],[47,37,51,53],[47,54,51,75],[29,48,35,75],[33,8,39,33],[36,38,43,38],[36,39,43,46],[36,47,43,47],[36,48,43,75],[40,8,43,33],[52,54,62,55],[52,56,62,74],[55,6,55,30],[55,31,55,36],[55,37,55,53],[56,37,58,53],[56,0,58,1],[56,2,58,14],[56,15,58,16],[56,17,58,36],[59,17,61,36],[59,0,61,1],[59,2,61,14],[59,15,61,16],[62,0,62,1],[62,2,62,14],[62,15,62,16],[62,17,62,36],[68,0,69,40],[71,0,74,13],[71,14,74,17],[71,18,74,46],[76,0,79,21],[76,22,79,40],[76,41,79,62],[59,37,61,53],[62,37,62,53],[64,0,66,75],[52,75,62,75],[53,0,53,5],[53,6,53,30],[53,31,53,36],[53,37,53,53],[54,0,54,5],[54,6,54,30],[54,31,54,36],[54,37,54,53],[55,0,55,5],[52,0,52,5],[52,6,52,30],[52,31,52,36],[52,37,52,53],[80,1,80,13],[80,14,80,20],[80,22,80,40],[80,41,83,42],[80,43,83,61],[80,62,83,62],[81,1,81,13],[81,14,81,20],[81,22,81,40],[82,1,82,13],[82,14,82,20],[82,22,82,40],[83,1,83,13],[83,14,83,20],[83,22,83,40],[85,0,86,2],[85,3,86,4],[85,40,85,48],[85,49,85,57],[85,67,85,75],[86,5,86,12],[86,13,86,20],[86,21,86,28],[86,31,86,39],[86,40,86,48],[86,49,86,57],[86,58,86,66],[86,67,86,75],[85,5,85,28],[85,29,86,30],[85,31,85,39],[85,58,85,66]]}
["請 求 書　(経 理 控)"]
[]
[]
[]
[]
[]
[null,null,null,null,null,null,null,null,null,null,null,null,null,null,null,null,null,null,null,null,null,null,null,{"$f":"IF('(10％用)入力フォーム'!X7:AD10=\"\",\"\",'(10％用)入力フォーム'!X7:AD10)","v":""},null,null,null,null,null,null,"年",null,null,null,{"$f":"IF('(10％用)入力フォーム'!AI7:AM10=\"\",\"\",'(10％用)入力フォーム'!AI7:AM10)","v":""},null,null,null,null,"月",null,null,null,{"$f":"IF('(10％用)入力フォーム'!AR7:AV10=\"\",\"\",'(10％用)入力フォーム'!AR7:AV10)","v":""},null,null,null,null,"日"]
[]
[]
[]
["松浦電機システム株式会社　御中"]
[]
[]
[]
["下記の通り、請求致します。"]
[]
[]
[]
[null,null,null,null,null,null,null,null,null,null,null,null,null,null,null,null,null,null,null,null,null,null,null,null,null,null,null,null,null,null,null,null,null,null,null,null,null,null,null,null,null,"工事番号内訳明細を添付される場合、チェックを入れて下さい。"]
[]
[]
[]
["取 引 先 コ ー ド",null,null,null,null,null,null,null,null,null,null,null,null,0,null,null,null,{"$f":"IF('(10％用)入力フォーム'!R23:U27=\"\",\"\",'(10％用)入力フォーム'!R23:U27)","v":""},null,null,null,{"$f":"IF('(10％用)入力フォーム'!V23:Y27=\"\",\"\",'(10％用)入力フォーム'!V23:Y27)","v":""},null,null,null,{"$f":"IF('(10％用)入力フォーム'!Z23:AC27=\"\",\"\",'(10％用)入力フォーム'!Z23:AC27)","v":""},null,null,null,{"$f":"IF('(10％用)入力フォーム'!AD23:AG27=\"\",\"\",'(10％用)入力フォーム'!AD23:AG27)","v":""},null,null,null,{"$f":"IF('(10％用)入力フォーム'!AH23:AK27=\"\",\"\",'(10％用)入力フォーム'!AH23:AK27)","v":""},null,null,null,null,null,"工事番号",null,null,null,null,null,null,null,null,{"$f":"IF('(10％用)入力フォーム'!AW23:AY29=\"\",\"\",'(10％用)入力フォーム'!AW23:AY29)","v":""},null,null,{"$f":"IF('(10％用)入力フォーム'!AZ23:BB29=\"\",\"\",'(10％用)入力フォーム'!AZ23:BB29)","v":""},null,null,"-",null,{"$f":"IF('(10％用)入力フォーム'!BE23:BG29=\"\",\"\",'(10％用)入力フォーム'!BE23:BG29)","v":""},null,null,{"$f":"IF('(10％用)入力フォーム'!BH23:BJ29=\"\",\"\",'(10％用)入力フォーム'!BH23:BJ29)","v":""},null,null,{"$f":"IF('(10％用)入力フォーム'!BK23:BM29=\"\",\"\",'(10％用)入力フォーム'!BK23:BM29)","v":""},null,null,"-",null,{"$f":"IF('(10％用)入力フォーム'!BP23:BR29=\"\",\"\",'(10％用)入力フォーム'!BP23:BR29)","v":""},null,null,{"$f":"IF('(10％用)入力フォーム'!BS23:BU29=\"\",\"\",'(10％用)入力フォーム'!BS23:BU29)","v":""},null,null,{"$f":"IF('(10％用)入力フォーム'!BV23:BX29=\"\",\"\",'(10％用)入力フォーム'!BV23:BX29)","v":""}]
[]
[]
[]
[]
[null,"会社名\n住　所\n電　話\nＦＡＸ",null,null,null,null,null,null,{"$f":"IF('(10％用)入力フォーム'!I28:AH33=\"\",\"\",'(10％用)入力フォーム'!I28:AH33)","v":""},null,null,null,null,null,null,null,null,null,null,null,null,null,null,null,null,null,null,null,null,null,null,null,null,null,"印"]
[]
[null,null,null,null,null,null,null,null,null,null,null,null,null,null,null,null,null,null,null,null,null,null,null,null,null,null,null,null,null,null,null,null,null,null,null,null,null,null,null,"現 場 名",null,null,null,null,null,null,null,null,{"$f":"IF('(10％用)入力フォーム'!AW30:BX36=\"\",\"\",'(10％用)入力フォーム'!AW30:BX36)","v":""}]
[]
[]
[]
[null,null,null,null,null,null,null,null,{"$f":"IF('(10％用)入力フォーム'!I34:AH40=\"\",\"\",'(10％用)入力フォーム'!I34:AH40)","v":""}]
[]
[]
[null,null,null,null,null,null,null,null,null,null,null,null,null,null,null,null,null,null,null,null,null,null,null,null,null,null,null,null,null,null,null,null,null,null,null,null,null,null,null,"工 事 名",null,null,null,null,null,null,null,null,{"$f":"IF('(10％用)入力フォーム'!AW37:BX44=\"\",\"\",'(10％用)入力フォーム'!AW37:BX44)","v":""}]
[]
[]
[]
[null,null,null,null,null,null,null,null,{"$f":"IF('(10％用)入力フォーム'!I41:AH44=\"\",\"\",'(10％用)入力フォーム'!I41:AH44)","v":""}]
[]
[]
[]
[]
["（請求内訳）",null,null,null,null,null,null,null,null,null,null,null,null,null,null,null,null,null,null,null,null,null,null,null,null,null,null,null,null,null,null,null,null,null,null,null,null,null,null,null,null,"品名内訳明細を添付される場合、チェックを入れて下さい。"]
[]
["納入日",null,null,null,null,null,"品　　　　　　名",null,null,null,null,null,null,null,null,null,null,null,null,null,null,null,null,null,null,null,null,null,null,null,null,"数量",null,null,null,null,null,"金　　　　額",null,null,null,null,null,null,null,null,null,null,null,null,null,null,null,null,"請求時の注意事項"]
[]
[]
[]
[]
[{"$f":"IF('(10％用)入力フォーム'!A53:F53=\"\",\"\",'(10％用)入力フォーム'!A53:F53)","v":""},null,null,null,null,null,{"$f":"IF('(10％用)入力フォーム'!G53:AE53=\"\",\"\",'(10％用)入力フォーム'!G53:AE53)","v":""},null,null,null,null,null,null,null,null,null,null,null,null,null,null,null,null,null,null,null,null,null,null,null,null,{"$f":"IF('(10％用)入力フォーム'!AF53:AK53=\"\",\"\",'(10％用)入力フォーム'!AF53:AK53)","v":""},null,null,null,null,null,{"$f":"IF('(10％用)入力フォーム'!AL53:BB53=\"\",\"\",'(10％用)入力フォーム'!AL53:BB53)","v":""},null,null,null,null,null,null,null,null,null,null,null,null,null,null,null,null,"1.\n\n\n\n2.\n\n\n3.\n\n\n\n\n4.\n\n\n\n\n5.\n\n\n",null,"この請求書は3枚1組です。\n1枚目経理控に貴社押印後、\nご提出下さい。\n\n会社名欄は、ゴム印を使用する際は入力不要です。\n\n工事番号内訳明細がある場合は、上段『工事番号』上の\nチェックボックスに必ずチェックを入れて下さい。\n\n品名内訳明細がある場合は、\n中段『(請求内訳)』横のチェックボックスにチェックを入れて\n下さい。\n\n消費税の端数調整が必要な場合は、中段『消費税(10)％』横のチェックボックスにチェックを入れて下さい。"]
[{"$f":"IF('(10％用)入力フォーム'!A54:F54=\"\",\"\",'(10％用)入力フォーム'!A54:F54)","v":""},null,null,null,null,null,{"$f":"IF('(10％用)入力フォーム'!G54:AE54=\"\",\"\",'(10％用)入力フォーム'!G54:AE54)","v":""},null,null,null,null,null,null,null,null,null,null,null,null,null,null,null,null,null,null,null,null,null,null,null,null,{"$f":"IF('(10％用)入力フォーム'!AF54:AK54=\"\",\"\",'(10％用)入力フォーム'!AF54:AK54)","v":""},null,null,null,null,null,{"$f":"IF('(10％用)入力フォーム'!AL54:BB54=\"\",\"\",'(10％用)入力フォーム'!AL54:BB54)","v":""}]
[{"$f":"IF('(10％用)入力フォーム'!A55:F55=\"\",\"\",'(10％用)入力フォーム'!A55:F55)","v":""},null,null,null,null,null,{"$f":"IF('(10％用)入力フォーム'!G55:AE55=\"\",\"\",'(10％用)入力フォーム'!G55:AE55)","v":""},null,null,null,null,null,null,null,null,null,null,null,null,null,null,null,null,null,null,null,null,null,null,null,null,{"$f":"IF('(10％用)入力フォーム'!AF55:AK55=\"\",\"\",'(10％用)入力フォーム'!AF55:AK55)","v":""},null,null,null,null,null,{"$f":"IF('(10％用)入力フォーム'!AL55:BB55=\"\",\"\",'(10％用)入力フォーム'!AL55:BB55)","v":""}]
[{"$f":"IF('(10％用)入力フォーム'!A56:F56=\"\",\"\",'(10％用)入力フォーム'!A56:F56)","v":""},null,null,null,null,null,{"$f":"IF('(10％用)入力フォーム'!G56:AE56=\"\",\"\",'(10％用)入力フォーム'!G56:AE56)","v":""},null,null,null,null,null,null,null,null,null,null,null,null,null,null,null,null,null,null,null,null,null,null,null,null,{"$f":"IF('(10％用)入力フォーム'!AF56:AK56=\"\",\"\",'(10％用)入力フォーム'!AF56:AK56)","v":""},null,null,null,null,null,{"$f":"IF('(10％用)入力フォーム'!AL56:BB56=\"\",\"\",'(10％用)入力フォーム'!AL56:BB56)","v":""}]
[null,null,"小計金額 (税抜)",null,null,null,null,null,null,null,null,null,null,null,null,null,null,null,null,null,null,null,null,null,null,null,null,null,null,null,null,null,null,null,null,null,null,{"$f":"IF('(10％用)入力フォーム'!AL57:BB59=\"\",\"\",'(10％用)入力フォーム'!AL57:BB59)","v":""}]
[]
[]
[null,null,"消費税 (10%)",null,null,null,null,null,null,null,null,null,null,null,null,null,null,null,null,null,null,null,null,null,null,null,null,null,null,null,null,null,null,null,null,null,null,{"$f":"IF('(10％用)入力フォーム'!AL60:BB62=\"\",\"\",'(10％用)入力フォーム'!AL60:BB62)","v":""}]
[]
[]
[null,null,"合 計 金 額",null,null,null,null,null,null,null,null,null,null,null,null,null,null,null,null,null,null,null,null,null,null,null,null,null,null,null,null,null,null,null,null,null,null,{"$f":"IF('(10％用)入力フォーム'!AL63:BB63=\"\",\"\",'(10％用)入力フォーム'!AL63:BB63)","v":""}]
[]
["上記の請求に対して、注文書が発行されている場合は、下記に注文書番号と金額の記載をお願い致します。"]
[]
[]
[]
["（出来高請求書）"]
[]
[]
["注文書No.(14桁)",null,null,null,null,null,null,null,null,null,null,null,null,null,"No.",null,null,null,{"$f":"IF('(10％用)入力フォーム'!S72:AU75=\"\",\"\",'(10％用)入力フォーム'!S72:AU75)","v":""}]
[]
[]
[]
[]
["項　　　　目",null,null,null,null,null,null,null,null,null,null,null,null,null,null,null,null,null,null,null,null,null,"金　　　額",null,null,null,null,null,null,null,null,null,null,null,null,null,null,null,null,null,null,"請求時の注意事項"]
[]
[]
[]
[null,"契約金額",null,null,null,null,null,null,null,null,null,null,null,null,"(税抜)",null,null,null,null,null,null,null,{"$f":"IF('(10％用)入力フォーム'!W81:AO81=\"\",\"\",'(10％用)入力フォーム'!W81:AO81)","v":""},null,null,null,null,null,null,null,null,null,null,null,null,null,null,null,null,null,null,"\n1.\n\n\n2.\n\n\n3.",null,"\n注文書No.が不明な場合、\n担当者へご確認下さい。\n\n請求書は注文書No.ごとに\n作成して下さい。\n\n税抜金額で入力して下さい。\n"]
[null,"請求済",null,null,null,null,null,null,null,null,null,null,null,null,"(税抜)",null,null,null,null,null,null,null,{"$f":"IF('(10％用)入力フォーム'!W82:AO82=\"\",\"\",'(10％用)入力フォーム'!W82:AO82)","v":""}]
[null,"今回請求額",null,null,null,null,null,null,null,null,null,null,null,null,"(税抜)",null,null,null,null,null,null,null,{"$f":"IF('(10％用)入力フォーム'!W83:AO83=\"\",\"\",'(10％用)入力フォーム'!W83:AO83)","v":""}]
[null,"残高",null,null,null,null,null,null,null,null,null,null,null,null,"(税抜)",null,null,null,null,null,null,null,{"$f":"IF('(10％用)入力フォーム'!W84:AO84=\"\",\"\",'(10％用)入力フォーム'!W84:AO84)","v":0}]
[]
["弊社使用欄",null,null,"本　社",null,"管理部",null,null,null,null,null,null,null,null,null,null,null,null,null,null,null,null,null,null,null,null,null,null,null,"事業所",null,"事業所長",null,null,null,null,null,null,null,null,"部長",null,null,null,null,null,null,null,null,"課長",null,null,null,null,null,null,null,null,"係長",null,null,null,null,null,null,null,null,"担当者"]

{"sheet":"請求書2","index":1,"n_rows":86,"n_cols":74,"rows_kept":86,"cut":false,"hidden":true,"merged":[[6,23,9,29],[0,0,4,75],[6,48,9,51],[6,43,9,47],[6,39,9,42],[6,34,9,38],[6,30,9,33],[84,67,85,75],[85,1,85,13],[85,14,85,20],[85,22,85,40],[81,0,82,0],[81,1,82,13],[81,14,82,20],[81,21,82,21],[81,22,82,40],[82,67,83,75],[83,0,84,0],[83,1,84,13],[83,14,84,20],[83,21,84,21],[80,1,80,13],[80,14,80,20],[80,22,80,40],[80,41,85,42],[80,43,85,61],[80,62,85,62],[83,22,84,40],[68,0,69,40],[71,0,74,13],[71,14,74,17],[71,18,74,46],[76,0,79,21],[76,22,79,40],[76,41,79,62],[64,0,66,75],[56,2,58,14],[56,15,58,16],[56,17,58,36],[56,37,58,53],[59,0,61,1],[59,2,61,14],[59,15,61,16],[59,17,61,36],[59,37,61,53],[52,75,62,75],[53,0,53,5],[53,6,53,30],[53,31,53,36],[53,37,53,53],[54,0,54,5],[54,6,54,30],[54,31,54,36],[54,37,54,53],[55,0,55,5],[52,0,52,5],[52,6,52,30],[52,31,52,36],[52,37,52,53],[52,54,62,55],[52,56,62,74],[55,6,55,30],[55,31,55,36],[55,37,55,53],[56,0,58,1],[62,0,62,1],[62,2,62,14],[62,15,62,16],[62,17,62,36],[62,37,62,53],[47,0,51,5],[47,6,51,30],[47,31,51,36],[47,37,51,53],[47,54,51,75],[29,48,35,75],[33,8,39,33],[36,38,43,38],[36,39,43,46],[36,47,43,47],[36,48,43,75],[40,8,43,33],[22,65,28,66],[22,67,28,69],[22,33,26,36],[22,38,28,38],[22,39,28,46],[22,47,28,47],[22,48,28,50],[22,51,28,53],[45,0,46,36],[45,41,46,75],[10,0,13,26],[11,50,13,69],[14,0,17,69],[18,41,21,75],[22,0,26,12],[22,13,26,16],[22,17,26,20],[22,21,26,24],[22,25,26,28],[22,29,26,32],[22,70,28,72],[22,73,28,75],[27,0,43,0],[27,1,43,6],[27,7,43,7],[27,8,32,33],[27,34,43,36],[29,38,35,38],[29,39,35,46],[29,47,35,47],[22,54,28,55],[22,56,28,58],[22,59,28,61],[22,62,28,64]]}
["請 求 書　(担当者控)"]
[]
[]
[]
[]
[]
[null,null,null,null,null,null,null,null,null,null,null,null,null,null,null,null,null,null,null,null,null,null,null,{"$f":"IF('(10％用)入力フォーム'!X7:AD10=\"\",\"\",'(10％用)入力フォーム'!X7:AD10)","v":""},null,null,null,null,null,null,"年",null,null,null,{"$f":"IF('(10％用)入力フォーム'!AI7:AM10=\"\",\"\",'(10％用)入力フォーム'!AI7:AM10)","v":""},null,null,null,null,"月",null,null,null,{"$f":"請求書!$AR$7","v":""},null,null,null,null,"日"]
[]
[]
[]
["松浦電機システム株式会社　御中"]
[]
[]
[]
["下記の通り、請求致します。"]
[]
[]
[]
[null,null,null,null,null,null,null,null,null,null,null,null,null,null,null,null,null,null,null,null,null,null,null,null,null,null,null,null,null,null,null,null,null,null,null,null,null,null,null,null,null,"工事番号内訳明細を添付される場合、チェックを入れて下さい。"]
[]
[]
[]
["取 引 先 コ ー ド",null,null,null,null,null,null,null,null,null,null,null,null,0,null,null,null,{"$f":"IF('(10％用)入力フォーム'!R23:U27=\"\",\"\",'(10％用)入力フォーム'!R23:U27)","v":""},null,null,null,{"$f":"IF('(10％用)入力フォーム'!V23:Y27=\"\",\"\",'(10％用)入力フォーム'!V23:Y27)","v":""},null,null,null,{"$f":"IF('(10％用)入力フォーム'!Z23:AC27=\"\",\"\",'(10％用)入力フォーム'!Z23:AC27)","v":""},null,null,null,{"$f":"IF('(10％用)入力フォーム'!AD23:AG27=\"\",\"\",'(10％用)入力フォーム'!AD23:AG27)","v":""},null,null,null,{"$f":"IF('(10％用)入力フォーム'!AH23:AK27=\"\",\"\",'(10％用)入力フォーム'!AH23:AK27)","v":""},null,null,null,null,null,"工事番号",null,null,null,null,null,null,null,null,{"$f":"請求書!AW23","v":""},null,null,{"$f":"請求書!AZ23","v":""},null,null,"-",null,{"$f":"請求書!BE23","v":""},null,null,{"$f":"請求書!BH23","v":""},null,null,{"$f":"請求書!BK23","v":""},null,null,"-",null,{"$f":"請求書!BP23","v":""},null,null,{"$f":"請求書!BS23","v":""},null,null,{"$f":"請求書!BV23","v":""}]
[]
[]
[]
[]
[null,"会社名\n住　所\n電　話\nＦＡＸ",null,null,null,null,null,null,{"$f":"請求書!I28","v":""}]
[]
[null,null,null,null,null,null,null,null,null,null,null,null,null,null,null,null,null,null,null,null,null,null,null,null,null,null,null,null,null,null,null,null,null,null,null,null,null,null,null,"現 場 名",null,null,null,null,null,null,null,null,{"$f":"請求書!AW30","v":""}]
[]
[]
[]
[null,null,null,null,null,null,null,null,{"$f":"請求書!I34","v":""}]
[]
[]
[null,null,null,null,null,null,null,null,null,null,null,null,null,null,null,null,null,null,null,null,null,null,null,null,null,null,null,null,null,null,null,null,null,null,null,null,null,null,null,"工 事 名",null,null,null,null,null,null,null,null,{"$f":"請求書!AW37","v":""}]
[]
[]
[]
[null,null,null,null,null,null,null,null,{"$f":"請求書!I41","v":""}]
[]
[]
[]
[]
["（請求内訳）",null,null,null,null,null,null,null,null,null,null,null,null,null,null,null,null,null,null,null,null,null,null,null,null,null,null,null,null,null,null,null,null,null,null,null,null,null,null,null,null,"品名内訳明細を添付される場合、チェックを入れて下さい。"]
[]
["納入日",null,null,null,null,null,"品　　　　　　名",null,null,null,null,null,null,null,null,null,null,null,null,null,null,null,null,null,null,null,null,null,null,null,null,"数量",null,null,null,null,null,"金　　　　額",null,null,null,null,null,null,null,null,null,null,null,null,null,null,null,null,"請求時の注意事項"]
[]
[]
[]
[]
[{"$f":"請求書!A53","v":""},null,null,null,null,null,{"$f":"請求書!G53","v":""},null,null,null,null,null,null,null,null,null,null,null,null,null,null,null,null,null,null,null,null,null,null,null,null,{"$f":"請求書!AF53","v":""},null,null,null,null,null,{"$f":"請求書!AL53","v":""},null,null,null,null,null,null,null,null,null,null,null,null,null,null,null,null,"1.\n\n\n\n2.\n\n\n3.\n\n\n\n\n4.\n\n\n\n\n5.\n\n\n",null,"この請求書は3枚1組です。\n1枚目経理控に貴社押印後、\nご提出下さい。\n\n会社名欄は、ゴム印を使用する際は入力不要です。\n\n工事番号内訳明細がある場合は、上段『工事番号』上の\nチェックボックスに必ずチェックを入れて下さい。\n\n品名内訳明細がある場合は、\n中段『(請求内訳)』横のチェックボックスにチェックを入れて\n下さい。\n\n消費税の端数調整が必要な場合は、中段『消費税(10)％』横のチェックボックスにチェックを入れて下さい。"]
[{"$f":"請求書!A54","v":""},null,null,null,null,null,{"$f":"請求書!G54","v":""},null,null,null,null,null,null,null,null,null,null,null,null,null,null,null,null,null,null,null,null,null,null,null,null,{"$f":"請求書!AF54","v":""},null,null,null,null,null,{"$f":"請求書!AL54","v":""}]
[{"$f":"請求書!A55","v":""},null,null,null,null,null,{"$f":"請求書!G55","v":""},null,null,null,null,null,null,null,null,null,null,null,null,null,null,null,null,null,null,null,null,null,null,null,null,{"$f":"請求書!AF55","v":""},null,null,null,null,null,{"$f":"請求書!AL55","v":""}]
[{"$f":"請求書!A56","v":""},null,null,null,null,null,{"$f":"請求書!G56","v":""},null,null,null,null,null,null,null,null,null,null,null,null,null,null,null,null,null,null,null,null,null,null,null,null,{"$f":"請求書!AF56","v":""},null,null,null,null,null,{"$f":"請求書!AL56","v":""}]
[null,null,"小計金額 (税抜)",null,null,null,null,null,null,null,null,null,null,null,null,null,null,null,null,null,null,null,null,null,null,null,null,null,null,null,null,null,null,null,null,null,null,{"$f":"請求書!AL57","v":""}]
[]
[]
[null,null,"消費税 (10%)",null,null,null,null,null,null,null,null,null,null,null,null,null,null,null,null,null,null,null,null,null,null,null,null,null,null,null,null,null,null,null,null,null,null,{"$f":"請求書!AL60","v":""}]
[]
[]
[null,null,"合 計 金 額",null,null,null,null,null,null,null,null,null,null,null,null,null,null,null,null,null,null,null,null,null,null,null,null,null,null,null,null,null,null,null,null,null,null,{"$f":"請求書!AL63","v":""}]
[]
["上記の請求に対して、注文書が発行されている場合は、下記に注文書番号と金額の記載をお願い致します。"]
[]
[]
[]
["（出来高請求書）"]
[]
[]
["注文書No.(14桁)",null,null,null,null,null,null,null,null,null,null,null,null,null,"No.",null,null,null,{"$f":"請求書!S72","v":""}]
[]
[]
[]
[]
["項　　　　目",null,null,null,null,null,null,null,null,null,null,null,null,null,null,null,null,null,null,null,null,null,"金　　　額",null,null,null,null,null,null,null,null,null,null,null,null,null,null,null,null,null,null,"請求時の注意事項"]
[]
[]
[]
[null,"契約金額",null,null,null,null,null,null,null,null,null,null,null,null,"(税抜)",null,null,null,null,null,null,null,{"$f":"請求書!W81","v":""},null,null,null,null,null,null,null,null,null,null,null,null,null,null,null,null,null,null,"\n1.\n\n\n2.\n\n\n3.",null,"\n注文書No.が不明な場合、\n担当者へご確認下さい。\n\n請求書は注文書No.ごとに\n作成して下さい。\n\n税抜金額で入力して下さい。\n"]
[null,"請求済",null,null,null,null,null,null,null,null,null,null,null,null,"(税抜)",null,null,null,null,null,null,null,{"$f":"請求書!W82","v":""}]
[null,null,null,null,null,null,null,null,null,null,null,null,null,null,null,null,null,null,null,null,null,null,null,null,null,null,null,null,null,null,null,null,null,null,null,null,null,null,null,null,null,null,null,null,null,null,null,null,null,null,null,null,null,null,null,null,null,null,null,null,null,null,null,null,null,null,null,"担当者"]
[null,"今回請求額",null,null,null,null,null,null,null,null,null,null,null,null,"(税抜)",null,null,null,null,null,null,null,{"$f":"請求書!W83","v":""}]
[]
[null,"残高",null,null,null,null,null,null,null,null,null,null,null,null,"(税抜)",null,null,null,null,null,null,null,{"$f":"請求書!W84","v":0}]

{"sheet":"請求書3","index":2,"n_rows":84,"n_cols":74,"rows_kept":84,"cut":false,"hidden":true,"merged":[[80,43,83,61],[80,62,83,62],[81,1,81,13],[81,14,81,20],[81,22,81,40],[82,1,82,13],[68,0,69,40],[71,0,74,13],[71,14,74,17],[71,18,74,46],[76,0,79,21],[76,22,79,40],[76,41,79,62],[82,14,82,20],[82,22,82,40],[83,1,83,13],[83,14,83,20],[83,22,83,40],[80,1,80,13],[80,14,80,20],[80,22,80,40],[80,41,83,42],[64,0,66,75],[56,2,58,14],[56,15,58,16],[56,17,58,36],[56,37,58,53],[59,0,61,1],[59,2,61,14],[59,15,61,16],[59,17,61,36],[59,37,61,53],[52,75,62,75],[53,0,53,5],[53,6,53,30],[53,31,53,36],[53,37,53,53],[54,0,54,5],[54,6,54,30],[54,31,54,36],[54,37,54,53],[55,0,55,5],[52,0,52,5],[52,6,52,30],[52,31,52,36],[52,37,52,53],[52,54,62,55],[52,56,62,74],[55,6,55,30],[55,31,55,36],[55,37,55,53],[56,0,58,1],[62,0,62,1],[62,2,62,14],[62,15,62,16],[62,17,62,36],[62,37,62,53],[22,33,26,36],[22,38,28,38],[22,39,28,46],[22,47,28,47],[22,48,28,50],[45,0,46,36],[45,41,46,75],[47,0,51,5],[47,6,51,30],[47,31,51,36],[47,37,51,53],[47,54,51,75],[29,47,35,47],[29,48,35,75],[33,8,39,33],[36,38,43,38],[36,39,43,46],[36,47,43,47],[36,48,43,75],[40,8,43,33],[14,0,17,69],[18,41,21,75],[22,0,26,12],[22,13,26,16],[22,17,26,20],[22,21,26,24],[22,25,26,28],[22,67,28,69],[22,70,28,72],[22,73,28,75],[27,0,43,0],[27,1,43,6],[27,7,43,7],[27,8,32,33],[27,34,43,36],[29,38,35,38],[29,39,35,46],[22,51,28,53],[22,54,28,55],[22,56,28,58],[22,59,28,61],[22,62,28,64],[22,65,28,66],[22,29,26,32],[0,0,4,75],[6,23,9,29],[6,30,9,33],[6,34,9,38],[6,39,9,42],[6,43,9,47],[6,48,9,51],[10,0,13,26],[11,50,13,69]]}
["請 求 書　(貴 社 控)"]
[]
[]
[]
[]
[]
[null,null,null,null,null,null,null,null,null,null,null,null,null,null,null,null,null,null,null,null,null,null,null,{"$f":"IF('(10％用)入力フォーム'!X7:AD10=\"\",\"\",'(10％用)入力フォーム'!X7:AD10)","v":""},null,null,null,null,null,null,"年",null,null,null,{"$f":"IF('(10％用)入力フォーム'!AI7:AM10=\"\",\"\",'(10％用)入力フォーム'!AI7:AM10)","v":""},null,null,null,null,"月",null,null,null,{"$f":"請求書!$AR$7","v":""},null,null,null,null,"日"]
[]
[]
[]
["松浦電機システム株式会社　御中"]
[]
[]
[]
["下記の通り、請求致します。"]
[]
[]
[]
[null,null,null,null,null,null,null,null,null,null,null,null,null,null,null,null,null,null,null,null,null,null,null,null,null,null,null,null,null,null,null,null,null,null,null,null,null,null,null,null,null,"工事番号内訳明細を添付される場合、チェックを入れて下さい。"]
[]
[]
[]
["取 引 先 コ ー ド",null,null,null,null,null,null,null,null,null,null,null,null,0,null,null,null,{"$f":"IF('(10％用)入力フォーム'!R23:U27=\"\",\"\",'(10％用)入力フォーム'!R23:U27)","v":""},null,null,null,{"$f":"IF('(10％用)入力フォーム'!V23:Y27=\"\",\"\",'(10％用)入力フォーム'!V23:Y27)","v":""},null,null,null,{"$f":"IF('(10％用)入力フォーム'!Z23:AC27=\"\",\"\",'(10％用)入力フォーム'!Z23:AC27)","v":""},null,null,null,{"$f":"IF('(10％用)入力フォーム'!AD23:AG27=\"\",\"\",'(10％用)入力フォーム'!AD23:AG27)","v":""},null,null,null,{"$f":"IF('(10％用)入力フォーム'!AH23:AK27=\"\",\"\",'(10％用)入力フォーム'!AH23:AK27)","v":""},null,null,null,null,null,"工事番号",null,null,null,null,null,null,null,null,{"$f":"請求書!AW23","v":""},null,null,{"$f":"請求書!AZ23","v":""},null,null,"-",null,{"$f":"請求書!BE23","v":""},null,null,{"$f":"請求書!BH23","v":""},null,null,{"$f":"請求書!BK23","v":""},null,null,"-",null,{"$f":"請求書!BP23","v":""},null,null,{"$f":"請求書!BS23","v":""},null,null,{"$f":"請求書!BV23","v":""}]
[]
[]
[]
[]
[null,"会社名\n住　所\n電　話\nＦＡＸ",null,null,null,null,null,null,{"$f":"請求書!I28","v":""}]
[]
[null,null,null,null,null,null,null,null,null,null,null,null,null,null,null,null,null,null,null,null,null,null,null,null,null,null,null,null,null,null,null,null,null,null,null,null,null,null,null,"現 場 名",null,null,null,null,null,null,null,null,{"$f":"請求書!AW30","v":""}]
[]
[]
[]
[null,null,null,null,null,null,null,null,{"$f":"請求書!I34","v":""}]
[]
[]
[null,null,null,null,null,null,null,null,null,null,null,null,null,null,null,null,null,null,null,null,null,null,null,null,null,null,null,null,null,null,null,null,null,null,null,null,null,null,null,"工 事 名",null,null,null,null,null,null,null,null,{"$f":"請求書!AW37","v":""}]
[]
[]
[]
[null,null,null,null,null,null,null,null,{"$f":"請求書!I41","v":""}]
[]
[]
[]
[]
["（請求内訳）",null,null,null,null,null,null,null,null,null,null,null,null,null,null,null,null,null,null,null,null,null,null,null,null,null,null,null,null,null,null,null,null,null,null,null,null,null,null,null,null,"品名内訳明細を添付される場合、チェックを入れて下さい。"]
[]
["納入日",null,null,null,null,null,"品　　　　　　名",null,null,null,null,null,null,null,null,null,null,null,null,null,null,null,null,null,null,null,null,null,null,null,null,"数量",null,null,null,null,null,"金　　　　額",null,null,null,null,null,null,null,null,null,null,null,null,null,null,null,null,"請求時の注意事項"]
[]
[]
[]
[]
[{"$f":"請求書!A53","v":""},null,null,null,null,null,{"$f":"請求書!G53","v":""},null,null,null,null,null,null,null,null,null,null,null,null,null,null,null,null,null,null,null,null,null,null,null,null,{"$f":"請求書!AF53","v":""},null,null,null,null,null,{"$f":"請求書!AL53","v":""},null,null,null,null,null,null,null,null,null,null,null,null,null,null,null,null,"1.\n\n\n\n2.\n\n\n3.\n\n\n\n\n4.\n\n\n\n\n5.\n\n\n",null,"この請求書は3枚1組です。\n1枚目経理控に貴社押印後、\nご提出下さい。\n\n会社名欄は、ゴム印を使用する際は入力不要です。\n\n工事番号内訳明細がある場合は、上段『工事番号』上の\nチェックボックスに必ずチェックを入れて下さい。\n\n品名内訳明細がある場合は、\n中段『(請求内訳)』横のチェックボックスにチェックを入れて\n下さい。\n\n消費税の端数調整が必要な場合は、中段『消費税(10)％』横のチェックボックスにチェックを入れて下さい。"]
[{"$f":"請求書!A54","v":""},null,null,null,null,null,{"$f":"請求書!G54","v":""},null,null,null,null,null,null,null,null,null,null,null,null,null,null,null,null,null,null,null,null,null,null,null,null,{"$f":"請求書!AF54","v":""},null,null,null,null,null,{"$f":"請求書!AL54","v":""}]
[{"$f":"請求書!A55","v":""},null,null,null,null,null,{"$f":"請求書!G55","v":""},null,null,null,null,null,null,null,null,null,null,null,null,null,null,null,null,null,null,null,null,null,null,null,null,{"$f":"請求書!AF55","v":""},null,null,null,null,null,{"$f":"請求書!AL55","v":""}]
[{"$f":"請求書!A56","v":""},null,null,null,null,null,{"$f":"請求書!G56","v":""},null,null,null,null,null,null,null,null,null,null,null,null,null,null,null,null,null,null,null,null,null,null,null,null,{"$f":"請求書!AF56","v":""},null,null,null,null,null,{"$f":"請求書!AL56","v":""}]
[null,null,"小計金額 (税抜)",null,null,null,null,null,null,null,null,null,null,null,null,null,null,null,null,null,null,null,null,null,null,null,null,null,null,null,null,null,null,null,null,null,null,{"$f":"請求書!AL57","v":""}]
[]
[]
[null,null,"消費税 (10%)",null,null,null,null,null,null,null,null,null,null,null,null,null,null,null,null,null,null,null,null,null,null,null,null,null,null,null,null,null,null,null,null,null,null,{"$f":"請求書!AL60","v":""}]
[]
[]
[null,null,"合 計 金 額",null,null,null,null,null,null,null,null,null,null,null,null,null,null,null,null,null,null,null,null,null,null,null,null,null,null,null,null,null,null,null,null,null,null,{"$f":"請求書!AL63","v":""}]
[]
["上記の請求に対して、注文書が発行されている場合は、下記に注文書番号と金額の記載をお願い致します。"]
[]
[]
[]
["（出来高請求書）"]
[]
[]
["注文書No.(14桁)",null,null,null,null,null,null,null,null,null,null,null,null,null,"No.",null,null,null,{"$f":"請求書!S72","v":""}]
[]
[]
[]
[]
["項　　　　目",null,null,null,null,null,null,null,null,null,null,null,null,null,null,null,null,null,null,null,null,null,"金　　　額",null,null,null,null,null,null,null,null,null,null,null,null,null,null,null,null,null,null,"請求時の注意事項"]
[]
[]
[]
[null,"契約金額",null,null,null,null,null,null,null,null,null,null,null,null,"(税抜)",null,null,null,null,null,null,null,{"$f":"請求書!W81","v":""},null,null,null,null,null,null,null,null,null,null,null,null,null,null,null,null,null,null,"\n1.\n\n\n2.\n\n\n3.",null,"\n注文書No.が不明な場合、\n担当者へご確認下さい。\n\n請求書は注文書No.ごとに\n作成して下さい。\n\n税抜金額で入力して下さい。\n"]
[null,"請求済",null,null,null,null,null,null,null,null,null,null,null,null,"(税抜)",null,null,null,null,null,null,null,{"$f":"請求書!W82","v":""}]
[null,"今回請求額",null,null,null,null,null,null,null,null,null,null,null,null,"(税抜)",null,null,null,null,null,null,null,{"$f":"請求書!W83","v":""}]
[null,"残高",null,null,null,null,null,null,null,null,null,null,null,null,"(税抜)",null,null,null,null,null,null,null,{"$f":"請求書!W84","v":0}]

{"sheet":"(10％用)入力フォーム","index":3,"n_rows":84,"n_cols":80,"rows_kept":84,"cut":false,"hidden":false,"merged":[[6,23,9,29],[22,51,28,53],[29,48,35,75],[36,48,43,75],[22,73,28,75],[22,70,28,72],[22,65,28,66],[22,62,28,64],[18,41,21,75],[22,67,28,69],[22,59,28,61],[22,56,28,58],[11,50,13,69],[29,38,35,38],[29,39,35,46],[29,47,35,47],[6,48,9,51],[6,43,9,47],[10,0,13,26],[6,39,9,42],[6,34,9,38],[6,30,9,33],[55,0,55,5],[22,29,26,32],[22,33,26,36],[22,13,26,16],[22,17,26,20],[22,21,26,24],[45,0,46,36],[45,41,46,75],[47,31,51,36],[27,0,43,0],[52,31,52,36],[52,6,52,30],[55,31,55,36],[54,31,54,36],[53,31,53,36],[47,6,51,30],[22,54,28,55],[47,37,51,53],[0,0,4,75],[81,22,81,40],[71,0,74,13],[71,14,74,17],[68,0,69,40],[64,0,66,75],[52,0,52,5],[53,0,53,5],[76,0,79,21],[76,22,79,40],[52,37,52,53],[53,37,53,53],[54,37,54,53],[55,37,55,53],[14,0,17,69],[47,54,51,75],[22,25,26,28],[53,6,53,30],[54,6,54,30],[55,6,55,30],[36,38,43,38],[62,15,62,16],[59,15,61,16],[56,15,58,16],[83,22,83,40],[56,37,58,53],[52,75,62,75],[52,56,62,74],[80,62,83,62],[80,43,83,61],[59,37,61,53],[81,1,81,13],[81,14,81,20],[82,1,82,13],[82,14,82,20],[83,1,83,13],[83,14,83,20],[62,0,62,1],[59,0,61,1],[56,0,58,1],[62,2,62,14],[59,2,61,14],[56,2,58,14],[76,41,79,62],[62,37,62,53],[82,22,82,40],[80,41,83,42],[80,22,80,40],[56,17,58,36],[59,17,61,19],[62,17,62,36],[22,47,28,47],[52,54,62,55],[80,1,80,13],[80,14,80,20],[27,1,43,6],[27,7,43,7],[27,8,32,33],[27,34,43,36],[33,8,39,33],[40,8,43,33],[22,38,28,38],[22,39,28,46],[59,20,61,20],[59,21,61,36],[71,18,74,46],[36,39,43,46],[36,47,43,47],[22,0,26,12],[54,0,54,5],[22,48,28,50],[47,0,51,5]]}
["請 求 書　(入力フォーム)"]
[]
[]
[]
[]
[]
[null,null,null,null,null,null,null,null,null,null,null,null,null,null,null,null,null,null,null,null,null,null,null,null,null,null,null,null,null,null,"年",null,null,null,null,null,null,null,null,"月",null,null,null,null,null,null,null,null,"日",null,null,null,null,null,null,null,null,null,null,null,null,null,null,null,null,null,null,null,null,null,null,null,null,null,null,null,null,null,null,{"$f":"$AL$57","v":""}]
[]
[]
[]
["松浦電機システム株式会社　御中"]
[null,null,null,null,null,null,null,null,null,null,null,null,null,null,null,null,null,null,null,null,null,null,null,null,null,null,null,null,null,null,null,null,null,null,null,null,null,null,null,null,null,null,null,null,null,null,null,null,null,null,"*黄色の部分のみ入力"]
[]
[]
["下記の通り、請求致します。"]
[]
[]
[]
[null,null,null,null,null,null,null,null,null,null,null,null,null,null,null,null,null,null,null,null,null,null,null,null,null,null,null,null,null,null,null,null,null,null,null,null,null,null,null,null,null,"工事番号内訳明細を添付される場合、チェックを入れて下さい。"]
[]
[]
[]
["取 引 先 コ ー ド",null,null,null,null,null,null,null,null,null,null,null,null,0,null,null,null,null,null,null,null,null,null,null,null,null,null,null,null,null,null,null,null,null,null,null,null,null,null,"工事番号",null,null,null,null,null,null,null,null,null,null,null,null,null,null,"-",null,null,null,null,null,null,null,null,null,null,"-"]
[]
[]
[]
[]
[null,"会社名\n住　所\n電　話\nＦＡＸ"]
[]
[null,null,null,null,null,null,null,null,null,null,null,null,null,null,null,null,null,null,null,null,null,null,null,null,null,null,null,null,null,null,null,null,null,null,null,null,null,null,null,"現 場 名"]
[]
[]
[]
[]
[]
[]
[null,null,null,null,null,null,null,null,null,null,null,null,null,null,null,null,null,null,null,null,null,null,null,null,null,null,null,null,null,null,null,null,null,null,null,null,null,null,null,"工 事 名"]
[]
[]
[]
[]
[]
[]
[]
[]
["（請求内訳）",null,null,null,null,null,null,null,null,null,null,null,null,null,null,null,null,null,null,null,null,null,null,null,null,null,null,null,null,null,null,null,null,null,null,null,null,null,null,null,null,"品名内訳明細を添付される場合、チェックを入れて下さい。"]
[]
["納入日",null,null,null,null,null,"品　　　　　　名",null,null,null,null,null,null,null,null,null,null,null,null,null,null,null,null,null,null,null,null,null,null,null,null,"数量",null,null,null,null,null,"金　　　　額",null,null,null,null,null,null,null,null,null,null,null,null,null,null,null,null,"請求時の注意事項"]
[]
[]
[]
[]
[null,null,null,null,null,null,null,null,null,null,null,null,null,null,null,null,null,null,null,null,null,null,null,null,null,null,null,null,null,null,null,null,null,null,null,null,null,null,null,null,null,null,null,null,null,null,null,null,null,null,null,null,null,null,"1.\n\n\n\n2.\n\n\n3.\n\n\n\n\n4.\n\n\n\n\n5.\n\n\n",null,"この請求書は3枚1組です。\n1枚目経理控に貴社押印後、\nご提出下さい。\n\n会社名欄は、ゴム印を使用する際は入力不要です。\n\n工事番号内訳明細がある場合は、上段『工事番号』上の\nチェックボックスに必ずチェックを入れて下さい。\n\n品名内訳明細がある場合は、\n中段『(請求内訳)』横のチェックボックスにチェックを入れて\n下さい。\n\n消費税の端数調整が必要な場合は、中段『消費税(10)％』横のチェックボックスにチェックを入れて下さい。"]
[]
[]
[]
[null,null,"小計金額 (税抜)",null,null,null,null,null,null,null,null,null,null,null,null,null,null,null,null,null,null,null,null,null,null,null,null,null,null,null,null,null,null,null,null,null,null,{"$f":"IF(AL53=\"\",\"\",SUM(AL53,AL54,AL55,AL56))","v":""}]
[]
[]
[null,null,"消費税 (10%)",null,null,null,null,null,null,null,null,null,null,null,null,null,null,null,null,null,null,"消費税の端数調整が\n必要な場合、チェックを入れて下さい。",null,null,null,null,null,null,null,null,null,null,null,null,null,null,null,{"$f":"IF(AL57=\"\",\"\",INT(AL57*10%))","v":""}]
[]
[]
[null,null,"合 計 金 額",null,null,null,null,null,null,null,null,null,null,null,null,null,null,null,null,null,null,null,null,null,null,null,null,null,null,null,null,null,null,null,null,null,null,{"$f":"IF(AL57=\"\",\"\",SUM(AL57,AL60))","v":""}]
[]
["上記の請求に対して、注文書が発行されている場合は、下記に注文書番号と金額の記載をお願い致します。"]
[]
[]
[]
["（出来高請求書）"]
[]
[]
["注文書No.(14桁)",null,null,null,null,null,null,null,null,null,null,null,null,null,"No."]
[]
[]
[]
[]
["項　　　　目",null,null,null,null,null,null,null,null,null,null,null,null,null,null,null,null,null,null,null,null,null,"金　　　額",null,null,null,null,null,null,null,null,null,null,null,null,null,null,null,null,null,null,"請求時の注意事項"]
[]
[]
[]
[null,"契約金額",null,null,null,null,null,null,null,null,null,null,null,null,"(税抜)",null,null,null,null,null,null,null,null,null,null,null,null,null,null,null,null,null,null,null,null,null,null,null,null,null,null,"\n1.\n\n\n2.\n\n\n3.",null,"\n注文書No.が不明な場合、\n担当者へご確認下さい。\n\n請求書は注文書No.ごとに\n作成して下さい。\n\n税抜金額で入力して下さい。\n"]
[null,"請求済",null,null,null,null,null,null,null,null,null,null,null,null,"(税抜)"]
[null,"今回請求額",null,null,null,null,null,null,null,null,null,null,null,null,"(税抜)"]
[null,"残高",null,null,null,null,null,null,null,null,null,null,null,null,"(税抜)",null,null,null,null,null,null,null,{"$f":"W81-(W82+W83)","v":0}]

{"sheet":"Sheet1","index":4,"n_rows":5,"n_cols":3,"rows_kept":5,"cut":false,"hidden":true,"merged":[]}
[false,false]
[]
[]
["課税10%",{"$f":"IF('(10％用)入力フォーム'!AL57=\"\",\"\",INT('(10％用)入力フォーム'!AL57*10%))","v":""},{"$f":"IF(#REF!=\"\",\"\",INT(#REF!*10%))","v":{"$error":"#REF!"}}]
["非課税･不課税",0,0]